bitfinex-derivatives/quotes_SOLF0:USTF0_20260121
["timestamp","ask_amount","ask_price","bid_price","bid_amount"]
[1769036502533,5.42804772,130.66,130.61,6.8963]
[1769036502927,5.42804772,130.66,130.62,6.896]
[1769036503128,6.893,130.68,130.62,6.896]
[1769036503129,2.50520399,130.67,130.62,6.896]
[1769036503527,2.50520399,130.67,130.63,6.8955]
[1769036505436,2.50520399,130.67,130.64,6.8948]
[1769036506434,2.50520399,130.69,130.65,6.8943]
[1769036506935,5.42804772,130.69,130.65,6.8943]
[1769036507334,2.50520399,130.69,130.66,6.8939]
[1769036517138,2.92284373,130.71,130.66,6.8939]
[1769036517139,5.42804772,130.71,130.66,6.8939]
[1769036517743,2.92284373,130.7,130.66,6.8939]
[1769036519747,2.50520399,130.67,130.6,3.32759866]
[1769036520539,2.50520399,130.69,130.63,6.8954]
[1769036530256,9.39760399,130.69,130.63,6.8954]
[1769036530658,2.50520399,130.65,130.6,6.8966]
[1769036530859,2.50520399,130.65,130.59,3.3348131]
[1769036532561,2.50520399,130.65,130.59,10.2323131]
[1769036534659,9.39980399,130.65,130.59,10.2323131]
[1769036534852,6.8946,130.65,130.59,10.2323131]
[1769036535558,6.8946,130.65,130.6,3.3348131]
[1769036542658,6.8946,130.65,130.58,3.3348131]
[1769036542659,6.895,130.64,130.58,3.3348131]
[1769036544461,6.895,130.64,130.57,6.8986957]
[1769036544462,6.8942,130.66,130.6,3.3348131]
[1769036545366,6.8942,130.66,130.61,3.3348131]
[1769036547256,2.50377577,130.68,130.57,9.57e-05]
[1769036547462,2.50377577,130.65,130.58,3.3348131]
[1769036548567,6.8955,130.63,130.58,3.3348131]
[1769036555570,6.895,130.64,130.58,3.3348131]
[1769036557074,6.895,130.64,130.59,3.3205474]
[1769036559172,2.50377577,130.65,130.57,3.3206431]
[1769036560178,6.8956,130.63,130.57,3.3206431]
[1769036564192,6.8956,130.63,130.58,3.3205474]
[1769036566494,9.39937577,130.63,130.58,3.3205474]
[1769036567190,2.50377577,130.63,130.58,3.3205474]
[1769036568393,9.39767577,130.66,130.59,3.3205474]
[1769036569595,2.50377577,130.68,130.61,3.3205474]
[1769036570991,2.50377577,130.68,130.62,10.2165474]
[1769036572596,2.50377577,130.7,130.64,3.3205474]
[1769036573190,9.39607577,130.7,130.64,3.3205474]
[1769036576895,9.39607577,130.7,130.6,2.50377577]
[1769036576896,9.39677577,130.68,130.58,107.3008]
[1769036577100,2.50377577,130.65,130.59,3.3205474]
[1769036577599,7.07442842,130.7,130.61,3.3205474]
[1769036577802,114.23572842,130.76,130.64,3.3205474]
[1769036578000,2.50377577,130.73,130.64,3.3205474]
[1769036578204,107.1656,130.75,130.66,3.3205474]
[1769036578394,2.50377577,130.73,130.66,3.3205474]
[1769036578795,6.8908,130.72,130.66,10.2144474]
[1769036579501,2.50377577,130.74,130.68,3.3205474]
[1769036579807,2.50377577,130.72,130.64,3.3205474]
[1769036580006,9.39457577,130.72,130.65,6.8939]
[1769036580212,2.50377577,130.7,130.63,3.17525393]
[1769036580500,2.50377577,130.7,130.64,6.8949]
[1769036580705,2.50377577,130.7,130.64,10.07015393]
[1769036581297,2.50377577,130.72,130.65,6.8944]
[1769036581497,2.50377577,130.72,130.66,3.24028022]
[1769036582906,9.39477577,130.72,130.66,3.24028022]
[1769036583605,6.8914,130.71,130.64,10.13488022]
[1769036583809,2.50377577,130.72,130.64,10.13488022]
[1769036583810,2.50377577,130.7,130.64,3.24028022]
[1769036584009,2.50377577,130.7,130.6,3.24028022]
[1769036584308,6.8924,130.69,130.6,3.24028022]
[1769036584907,6.8924,130.69,130.63,3.24028022]
[1769036587104,6.8924,130.69,130.59,3.24028022]
[1769036587105,2.50377577,130.66,130.59,3.24028022]
[1769036587411,2.50377577,130.64,130.59,3.24028022]
[1769036588502,2.50377577,130.64,130.57,9.57e-05]
[1769036588503,2.50377577,130.62,130.57,9.57e-05]
[1769036588703,2.50377577,130.62,130.57,3.24037592]
[1769036589420,1e-08,130.62,130.57,10.13897592]
[1769036589712,2.50377577,130.63,130.57,10.13897592]
[1769036589906,2.50377577,130.63,130.58,3.24028022]
[1769036591108,128.05132842,130.72,130.59,3.24028022]
[1769036591305,2.50377577,130.68,130.59,3.24028022]
[1769036593006,6.8934,130.67,130.59,3.24028022]
[1769036594713,6.894,130.66,130.59,3.24028022]
[1769036595110,6.894,130.66,130.59,10.13788022]
[1769036595411,9.39687577,130.68,130.6,3.24028022]
[1769036596915,2.50301826,130.67,130.6,3.24028022]
[1769036598016,2.50301826,130.67,130.6,10.13738022]
[1769036598213,2.50301826,130.67,130.59,3.24028022]
[1769036598513,2.50301826,130.65,130.59,3.24028022]
[1769036598715,2.50301826,130.65,130.57,9.57e-05]
[1769036598716,2.50301826,130.61,130.57,9.57e-05]
[1769036598916,107.2494,130.65,130.57,9.57e-05]
[1769036599118,2.50301826,130.63,130.57,9.57e-05]
[1769036599516,9.39901826,130.63,130.57,9.57e-05]
[1769036599713,2.50301826,130.65,130.57,3.24037592]
[1769036600114,2.50301826,130.65,130.58,3.24028022]
[1769036600415,2.50301826,130.67,130.58,3.24028022]
[1769036600917,6.894,130.66,130.59,10.13788022]
[1769036601810,2.50301826,130.7,130.61,3.24028022]
[1769036603019,6.8929,130.68,130.61,10.13688022]
[1769036603207,2.50301826,130.66,130.57,5.74339418]
[1769036603410,2.50301826,130.64,130.57,3.24037592]
[1769036603918,2.50301826,130.68,130.59,3.24028022]
[1769036604322,6.8934,130.67,130.6,10.13728022]
[1769036604717,6.8934,130.67,130.61,3.24028022]
[1769036605122,6.894,130.66,130.6,6.897]
[1769036605823,6.894,130.66,130.59,3.24028022]
[1769036606026,9.39701826,130.66,130.59,3.24028022]
[1769036606522,2.50301826,130.66,130.59,3.24028022]
[1769036606726,9.39631826,130.68,130.6,3.24028022]
[1769036608718,9.39631826,130.68,130.6,10.13738022]
[1769036608926,6.8933,130.68,130.61,3.24028022]
[1769036609125,2.50301826,130.68,130.61,3.24028022]
[1769036609328,2.50301826,130.68,130.59,3.24028022]
[1769036609515,2.50301826,130.66,130.59,3.24028022]
[1769036609923,130.2125,130.7,130.59,3.24028022]
[1769036610122,2.50301826,130.68,130.6,3.24028022]
[1769036612028,9.39641826,130.68,130.6,10.13718022]
[1769036612228,9.39641826,130.68,130.6,3.24028022]
[1769036613225,9.39641826,130.68,130.61,6.8965]
[1769036613433,2.50301826,130.68,130.61,3.39876071]
[1769036613630,23.0,130.72,130.61,3.39876071]
[1769036613631,2.50301826,130.7,130.61,3.39876071]
[1769036614620,2.50301826,130.71,130.64,3.39876071]
[1769036615030,7.06789813,130.78,130.67,3.39876071]
[1769036615238,2.50301826,130.74,130.67,3.39876071]
[1769036616630,2.50301826,130.74,130.68,3.39876071]
[1769036617036,2.50301826,130.74,130.65,3.39876071]
[1769036617236,2.50301826,130.72,130.65,10.29276071]
[1769036617430,2.50301826,130.72,130.66,3.39876071]
[1769036618129,2.50301826,130.74,130.67,3.39876071]
[1769036618737,2.50301826,130.74,130.64,107.252]
[1769036618738,2.50301826,130.76,130.68,10.29126071]
[1769036618924,2.50301826,130.74,130.68,3.39876071]
[1769036619129,2.50301826,130.72,130.66,3.39876071]
[1769036620037,2.50301826,130.72,130.66,10.29246071]
[1769036620236,2.50301826,130.72,130.66,3.39876071]
[1769036620645,2.50301826,130.72,130.66,10.29246071]
[1769036621032,7.06789813,130.81,130.67,3.39876071]
[1769036621239,2.50301826,130.77,130.7,3.39876071]
[1769036622336,2.50301826,130.77,130.7,10.29036071]
[1769036623048,2.50301826,130.77,130.7,3.39876071]
[1769036623843,9.39131826,130.77,130.7,3.39876071]
[1769036625144,2.50301826,130.77,130.7,10.29046071]
[1769036625644,107.1203,130.81,130.7,10.29046071]
[1769036625645,2.50301826,130.75,130.7,3.39876071]
[1769036626641,6.8882,130.77,130.7,3.39876071]
[1769036626642,2.50301826,130.77,130.7,3.39876071]
[1769036626843,2.50301826,130.77,130.71,3.39876071]
[1769036627547,2.50301826,130.77,130.71,10.28996071]
[1769036628545,2.50301826,130.77,130.72,6.8907]
[1769036628749,2.50301826,130.79,130.73,3.39876071]
[1769036629950,2.50301826,130.79,130.73,10.28866071]
[1769036630350,2.50301826,130.79,130.74,3.39876071]
[1769036631353,2.50301826,130.83,130.75,3.39876071]
[1769036632846,2.50301826,130.83,130.76,3.39876071]
[1769036633046,428.22520406,130.84,130.76,3.39876071]
[1769036634058,428.22520406,130.84,130.78,3.39876071]
[1769036637249,428.22520406,130.84,130.78,10.28626071]
[1769036640662,2.50301826,130.83,130.78,3.39876071]
[1769036641058,2.50301826,130.83,130.76,6.8882]
[1769036641059,2.50301826,130.83,130.76,10.25205425]
[1769036641257,9.38801826,130.83,130.76,10.25205425]
[1769036641459,2.50301826,130.81,130.74,6.8893]
[1769036642251,2.50301826,130.79,130.74,6.8893]
[1769036643356,2.50301826,130.79,130.75,6.8891]
[1769036643547,2.50301826,130.81,130.74,3.38948776]
[1769036645960,2.50301826,130.81,130.75,10.27858776]
[1769036646151,2.50301826,130.81,130.72,3.38948776]
[1769036646355,2.50301826,130.79,130.72,3.38948776]
[1769036646863,6.13376433,130.83,130.72,3.38948776]
[1769036648057,6.8861,130.81,130.74,10.27908776]
[1769036651665,6.8866,130.8,130.74,3.38948776]
[1769036651859,107.1085,130.82,130.72,3.38948776]
[1769036652054,6.13376433,130.8,130.69,3.38948776]
[1769036652256,6.8874,130.79,130.72,10.27968776]
[1769036653462,6.8877,130.78,130.7,6.8913]
[1769036653669,6.8877,130.78,130.7,10.28078776]
[1769036654969,6.8882,130.77,130.7,10.28078776]
[1769036657159,6.8889,130.76,130.7,3.38948776]
[1769036657873,6.8881,130.77,130.7,3.38948776]
[1769036658970,6.8881,130.77,130.7,10.28128776]
[1769036659567,6.8876,130.78,130.71,10.28068776]
[1769036660764,6.8876,130.78,130.72,3.38948776]
[1769036662171,6.8881,130.77,130.71,10.28068776]
[1769036662373,6.13716537,130.8,130.72,10.28018776]
[1769036662576,107.1085,130.82,130.72,10.28018776]
[1769036662577,107.1085,130.82,130.73,3.38948776]
[1769036663878,6.8871,130.79,130.73,3.38948776]
[1769036664176,107.1085,130.82,130.72,6.8907]
[1769036664478,107.1166,130.81,130.71,10.28078776]
[1769036665473,6.8881,130.78,130.71,10.28078776]
[1769036666480,6.8881,130.77,130.71,10.28078776]
[1769036668872,9.38723353,130.77,130.71,10.28078776]
[1769036669778,6.8876,130.78,130.72,3.38948776]
[1769036669978,9.38673353,130.78,130.72,3.38948776]
[1769036672785,6.8871,130.79,130.72,10.28018776]
[1769036673176,6.8871,130.79,130.72,3.38948776]
[1769036673380,2.49913353,130.78,130.72,3.38948776]
[1769036674881,9.38693353,130.78,130.72,3.38948776]
[1769036675080,2.49913353,130.78,130.72,3.38948776]
[1769036675891,6.8883,130.77,130.72,3.38948776]
[1769036679092,107.1085,130.82,130.72,3.38948776]
[1769036679286,2.49913353,130.8,130.72,3.38948776]
[1769036680979,9.38573353,130.8,130.73,6.8902]
[1769036681885,9.38573353,130.8,130.73,10.11834594]
[1769036686499,9.38573353,130.8,130.74,3.22814594]
[1769036690795,6.8872,130.79,130.74,3.22814594]
[1769036694699,6.8872,130.79,130.73,6.8902]
[1769036694700,2.49913353,130.84,130.75,3.22814594]
[1769036694907,2.49913353,130.84,130.76,3.22814594]
[1769036695902,6.8859,130.82,130.77,3.22814594]
[1769036698204,9.38393353,130.84,130.72,3.22814594]
[1769036698506,2.49913353,130.82,130.74,3.22814594]
[1769036699410,2.49913353,130.82,130.75,3.22814594]
[1769036699604,6.8852,130.83,130.71,3.16661102]
[1769036699605,2.49913353,130.78,130.71,3.16661102]
[1769036701003,2.49913353,130.76,130.69,3.16661102]
[1769036701204,2.49913353,130.76,130.66,2.49913353]
[1769036701205,2.49913353,130.77,130.68,3.10131409]
[1769036701511,2.49913353,130.79,130.71,3.10131409]
[1769036702510,9.38633353,130.79,130.71,3.10131409]
[1769036704011,2.49913353,130.77,130.71,3.10131409]
[1769036705924,2.49913353,130.77,130.71,9.99251409]
[1769036706413,6.8872,130.79,130.71,9.99251409]
[1769036706614,2.49913353,130.77,130.71,9.99251409]
[1769036707410,2.49913353,130.75,130.65,3.10131409]
[1769036707608,2.49913353,130.71,130.65,3.10131409]
[1769036708011,2.49913353,130.71,130.66,9.99511409]
[1769036709409,2.49913353,130.71,130.66,3.10131409]
[1769036710914,2.49913353,130.71,130.66,9.99521409]
[1769036711519,2.49913353,130.71,130.66,3.10131409]
[1769036711821,2.49913353,130.71,130.64,9.99581409]
[1769036712114,2.49913353,130.71,130.64,3.10131409]
[1769036712115,2.49913353,130.69,130.64,3.10131409]
[1769036714013,2.49913353,130.69,130.64,9.99631409]
[1769036714611,6.8905,130.73,130.66,3.10131409]
[1769036714810,2.49913353,130.73,130.66,3.10131409]
[1769036715917,2.49913353,130.73,130.66,9.99521409]
[1769036715918,9.38943353,130.73,130.66,9.99521409]
[1769036716915,2.5009351,130.72,130.66,9.99521409]
[1769036720909,2.5009351,130.72,130.64,9.99601409]
[1769036721115,2.5009351,130.7,130.64,3.10131409]
[1769036721720,2.5009351,130.7,130.61,3.10131409]
[1769036723019,9.3927351,130.7,130.63,9.99671409]
[1769036726420,9.3920351,130.72,130.65,3.10131409]
[1769036726617,2.5009351,130.72,130.65,3.10131409]
[1769036728021,2.5009351,130.72,130.66,9.99491409]
[1769036728621,9.3917351,130.72,130.66,3.10131409]
[1769036731526,2.5009351,130.72,130.66,9.99521409]
[1769036735233,2.5009351,130.72,130.67,6.8933]
[1769036740246,2.5009351,130.72,130.66,3.10131409]
[1769036742639,2.5009351,130.74,130.67,3.22829784]
[1769036743646,9.3907351,130.74,130.68,3.22829784]
[1769036744546,2.5009351,130.74,130.68,3.22829784]
[1769036748946,9.3907351,130.74,130.68,3.22829784]
[1769036756154,2.5009351,130.74,130.68,10.12079784]
[1769036757355,2.5009351,130.74,130.69,3.22829784]
[1769036758155,2.5009351,130.76,130.7,3.22829784]
[1769036758458,2.5009351,130.78,130.7,3.22829784]
[1769036759959,6.8881,130.77,130.71,10.1856476]
[1769036760350,2.5009351,130.78,130.71,3.2946476]
[1769036760552,2.5009351,130.78,130.73,6.8902]
[1769036761457,2.5009351,130.78,130.7,3.22777955]
[1769036761654,2.5009351,130.76,130.7,3.22777955]
[1769036762461,2.5009351,130.76,130.71,3.22777955]
[1769036764758,6.8884,130.77,130.71,3.22777955]
[1769036767355,2.5009351,130.78,130.71,3.22777955]
[1769036767558,6.8887,130.76,130.71,3.22777955]
[1769036768264,6.8881,130.77,130.72,3.22777955]
[1769036770462,9.3885351,130.78,130.72,3.22777955]
[1769036772656,9.3885351,130.78,130.72,10.11847955]
[1769036772960,9.3879351,130.8,130.73,3.22777955]
[1769036774563,6.8871,130.79,130.73,3.22777955]
[1769036775571,9.3875351,130.8,130.74,3.22777955]
[1769036778373,2.5009351,130.8,130.75,3.22777955]
[1769036778975,2.49777841,130.81,130.75,3.22777955]
[1769036779972,6.8866,130.8,130.75,3.22777955]
[1769036781576,2.49777841,130.81,130.76,3.22777955]
[1769036783075,9.38377841,130.81,130.76,3.22777955]
[1769036788286,9.38307841,130.83,130.76,3.22777955]
[1769036788490,9.38307841,130.83,130.77,3.22777955]
[1769036790485,6.8853,130.83,130.77,3.22777955]
[1769036790681,2.49777841,130.84,130.77,3.22777955]
[1769036791189,6.8847,130.84,130.78,3.22777955]
[1769036791582,2.49777841,130.86,130.78,3.22777955]
[1769036791784,9.38117841,130.86,130.78,3.22777955]
[1769036792890,9.38117841,130.86,130.79,6.887]
[1769036793190,9.38117841,130.86,130.79,10.02588499]
[1769036794486,2.49777841,130.88,130.81,3.13888499]
[1769036795586,2.49777841,130.9,130.82,3.13888499]
[1769036796993,9.37907841,130.9,130.83,6.8849]
[1769036797496,9.37907841,130.9,130.83,10.02378499]
[1769036797692,2.49777841,130.9,130.84,6.8844]
[1769036800792,2.49777841,130.9,130.83,3.13888499]
[1769036801493,9.37927841,130.9,130.83,3.13888499]
[1769036803291,6.8818,130.89,130.83,3.13888499]
[1769036806793,9.37907841,130.9,130.84,3.13888499]
[1769036808601,2.49777841,130.9,130.84,3.13888499]
[1769036809199,9.37907841,130.9,130.84,3.13888499]
[1769036810895,6.8819,130.89,130.84,3.13888499]
[1769036812198,2.49777841,130.9,130.84,3.13888499]
[1769036813804,2.49777841,130.88,130.8,3.13888499]
[1769036815305,9.38017841,130.88,130.81,6.8855]
[1769036815699,9.38017841,130.88,130.81,10.02438499]
[1769036816607,2.49777841,130.88,130.83,3.13888499]
[1769036819509,6.8818,130.89,130.84,3.13888499]
[1769036820808,6.8825,130.88,130.81,6.8855]
[1769036821013,2.49777841,130.88,130.82,3.09679033]
[1769036821213,2.49777841,130.86,130.8,3.11672588]
[1769036821414,2.49777841,130.86,130.81,3.11672588]
[1769036823106,6.883,130.87,130.81,3.11672588]
[1769036825220,2.49777841,130.88,130.82,3.11672588]
[1769036829420,2.49777841,130.88,130.82,10.00212588]
[1769036830315,2.49777841,130.88,130.83,3.11672588]
[1769036831521,6.8813,130.9,130.84,3.11672588]
[1769036831721,9.37907841,130.9,130.84,3.11672588]
[1769036832221,2.49777841,130.9,130.84,10.00102588]
[1769036832617,2.49777841,130.9,130.85,3.11672588]
[1769036834520,2.49777841,130.9,130.84,6.8843]
[1769036835421,2.49777841,130.9,130.84,10.00102588]
[1769036836421,2.49777841,130.91,130.82,3.11672588]
[1769036836622,2.49777841,130.89,130.82,3.11672588]
[1769036837023,2.49777841,130.89,130.83,3.11672588]
[1769036837324,2.49777841,130.89,130.79,109.62417841]
[1769036837325,2.49777841,130.87,130.8,3.11672588]
[1769036837919,2.49777841,130.87,130.81,10.00272588]
[1769036839424,2.49777841,130.88,130.82,3.11672588]
[1769036841026,2.49488645,130.88,130.82,3.11672588]
[1769036841228,9.37718645,130.88,130.82,3.11672588]
[1769036842126,2.49488645,130.88,130.83,3.11672588]
[1769036842526,2.49488645,130.88,130.79,3.11672588]
[1769036842720,2.49488645,130.86,130.79,3.11672588]
[1769036843926,2.49488645,130.86,130.81,3.11672588]
[1769036845634,9.37838645,130.86,130.81,3.11672588]
[1769036846732,2.49488645,130.86,130.81,3.11672588]
[1769036846933,2.49488645,130.88,130.81,3.11672588]
[1769036847629,2.49488645,130.89,130.82,3.11672588]
[1769036848930,9.37668645,130.89,130.82,10.00212588]
[1769036849533,9.37668645,130.89,130.83,3.11672588]
[1769036855441,6.8824,130.88,130.83,3.11672588]
[1769036858546,2.49488645,130.89,130.83,3.11672588]
[1769036858547,6.883,130.87,130.83,3.11672588]
[1769036861850,6.8824,130.88,130.83,3.11672588]
[1769036865060,6.8835,130.86,130.81,3.34168718]
[1769036865262,6.8835,130.86,130.79,10.22828718]
[1769036865462,2.49488645,130.85,130.79,10.22828718]
[1769036865655,2.49488645,130.85,130.79,3.34168718]
[1769036865859,107.062,130.88,130.77,6.888]
[1769036865860,2.49488645,130.83,130.77,3.34168718]
[1769036866062,6.8855,130.82,130.75,3.34168718]
[1769036866264,2.49488645,130.81,130.75,3.34168718]
[1769036867366,2.49488645,130.81,130.76,3.34168718]
[1769036868560,2.49488645,130.83,130.76,3.34168718]
[1769036868956,2.49488645,130.83,130.76,10.23028718]
[1769036869260,9.37998645,130.83,130.76,3.34168718]
[1769036872061,2.49488645,130.81,130.76,3.34168718]
[1769036872861,2.49488645,130.83,130.77,3.34168718]
[1769036874765,2.49488645,130.81,130.75,10.23058718]
[1769036876369,2.49488645,130.81,130.76,3.34168718]
[1769036878266,2.49488645,130.81,130.77,3.34168718]
[1769036881565,2.49488645,130.81,130.74,3.3482337]
[1769036882366,2.49488645,130.81,130.75,10.2374337]
[1769036887072,9.38088645,130.81,130.75,3.3482337]
[1769036888173,6.8866,130.8,130.75,3.3482337]
[1769036889771,2.49488645,130.81,130.75,3.3482337]
[1769036891882,9.38098645,130.81,130.75,3.3482337]
[1769036896768,9.38098645,130.81,130.75,10.2373337]
[1769036897179,2.49488645,130.81,130.76,3.3482337]
[1769036897366,2.49488645,130.83,130.76,3.3482337]
[1769036898878,9.37988645,130.83,130.76,10.2367337]
[1769036900277,6.8843,130.85,130.78,3.3482337]
[1769036900966,9.3805737,130.85,130.78,3.3482337]
[1769036901975,9.3805737,130.85,130.78,10.2355337]
[1769036903679,9.3805737,130.85,130.78,3.3482337]
[1769036903680,6.8847,130.84,130.78,3.3482337]
[1769036909381,6.885,130.83,130.78,3.3482337]
[1769036910177,6.8845,130.84,130.78,3.3482337]
[1769036913688,6.8845,130.84,130.78,10.2357337]
[1769036914480,2.4962737,130.86,130.79,10.02860812]
[1769036914685,2.4962737,130.87,130.79,10.02860812]
[1769036914880,2.4962737,130.87,130.79,3.14170812]
[1769036915886,6.8835,130.86,130.8,6.8864]
[1769036916684,6.8835,130.86,130.8,10.02810812]
[1769036919993,6.8835,130.86,130.81,3.14170812]
[1769036922393,6.8839,130.85,130.81,3.14170812]
[1769036926499,6.8839,130.85,130.79,3.14170812]
[1769036928899,6.8845,130.84,130.79,3.14170812]
[1769036929101,2.4962737,130.85,130.79,3.14170812]
[1769036929992,6.885,130.83,130.79,3.14170812]
[1769036932201,9.3802737,130.85,130.79,3.14170812]
[1769036932395,2.4962737,130.85,130.77,3.14170812]
[1769036933001,6.8846,130.84,130.77,3.14170812]
[1769036935296,6.8846,130.84,130.77,10.02970812]
[1769036937100,2.4962737,130.83,130.77,3.14170812]
[1769036937303,2.4962737,130.83,130.75,10.03040812]
[1769036937505,2.4962737,130.81,130.75,6.8887]
[1769036937807,2.4962737,130.81,130.74,3.14170812]
[1769036938194,130.0548,130.84,130.71,3.14170812]
[1769036938195,2.4962737,130.79,130.71,3.14170812]
[1769036938400,2.4962737,130.77,130.71,3.14170812]
[1769036939308,2.4962737,130.77,130.71,10.03300812]
[1769036939808,2.4962737,130.79,130.73,10.17083298]
[1769036941002,9.3833737,130.79,130.73,3.28063298]
[1769036943298,9.3833737,130.79,130.72,6.8907]
[1769036943299,2.4962737,130.77,130.71,3.21196627]
[1769036945008,9.3843737,130.77,130.71,3.21196627]
[1769036950108,6.8886,130.76,130.71,3.21196627]
[1769036952215,2.4962737,130.77,130.71,3.21196627]
[1769036953708,9.3846737,130.77,130.71,3.21196627]
[1769036956507,2.4962737,130.75,130.69,10.10426627]
[1769036956702,2.4962737,130.73,130.67,3.21196627]
[1769036958012,9.3869737,130.73,130.67,3.21196627]
[1769036958514,6.8911,130.72,130.64,6.8947]
[1769036958708,6.8911,130.72,130.65,3.21196627]
[1769036958911,2.4962737,130.71,130.65,3.21196627]
[1769036959214,2.4962737,130.71,130.65,10.10636627]
[1769036960319,9.3875737,130.71,130.65,3.21196627]
[1769036963013,9.39297373,130.71,130.65,3.21196627]
[1769036969724,2.50167373,130.71,130.66,3.21196627]
[1769036971229,9.39297373,130.71,130.65,6.8943]
[1769036971525,9.39297373,130.71,130.65,10.14431114]
[1769036977925,9.39297373,130.71,130.66,3.25001114]
[1769036982340,2.50167373,130.71,130.66,10.14391114]
[1769036983740,6.8908,130.72,130.66,10.14391114]
[1769036984840,2.50167373,130.73,130.68,3.25001114]
[1769036985534,6.8902,130.74,130.69,3.25001114]
[1769036988540,6.8903,130.73,130.69,3.25001114]
[1769036994042,6.8903,130.73,130.67,3.25001114]
[1769036995449,2.50167373,130.73,130.65,3.25001114]
[1769036996952,9.39197373,130.73,130.65,10.14441114]
[1769036997251,9.39197373,130.73,130.65,3.25001114]
[1769036998954,9.39197373,130.73,130.66,6.8939]
[1769036999954,9.39197373,130.73,130.66,10.30050506]
[1769037000154,2.50167373,130.71,130.64,10.30110506]
[1769037002056,9.39297373,130.71,130.64,10.30110506]
[1769037005362,6.8919,130.7,130.64,3.40660506]
[1769037007066,2.50167373,130.69,130.62,3.12113213]
[1769037007961,6.8929,130.68,130.62,3.12113213]
[1769037008468,2.50167373,130.69,130.62,3.12113213]
[1769037009767,2.50167373,130.67,130.62,3.12113213]
[1769037010068,2.50167373,130.67,130.6,3.12113213]
[1769037010764,6.8945,130.65,130.6,3.12113213]
[1769037011269,9.39547373,130.67,130.61,3.12113213]
[1769037014778,107.2101,130.7,130.61,3.12113213]
[1769037014779,9.39447373,130.69,130.62,3.12113213]
[1769037020278,9.39447373,130.69,130.63,3.12113213]
[1769037020985,2.50167373,130.69,130.6,10.01783213]
[1769037021279,2.50167373,130.69,130.61,3.12113213]
[1769037021870,2.50167373,130.69,130.63,3.12113213]
[1769037022077,2.50167373,130.71,130.63,3.12113213]
[1769037022473,9.39297373,130.71,130.64,3.12113213]
[1769037023273,9.39297373,130.71,130.64,10.01603213]
[1769037023482,2.50167373,130.71,130.62,3.12113213]
[1769037024880,6.8924,130.69,130.63,6.8955]
[1769037025083,6.8924,130.69,130.64,3.12113213]
[1769037026384,6.8924,130.69,130.63,6.8955]
[1769037026687,6.8924,130.69,130.63,10.01663213]
[1769037027184,6.8924,130.69,130.63,3.12113213]
[1769037027381,6.8929,130.68,130.6,3.12113213]
[1769037027781,6.8929,130.68,130.61,3.12113213]
[1769037029187,6.8935,130.67,130.61,3.12113213]
[1769037033090,6.8935,130.67,130.61,10.01763213]
[1769037033490,6.8935,130.67,130.61,3.12113213]
[1769037035389,9.39520978,130.67,130.6,6.8969]
[1769037035584,6.894,130.66,130.6,6.8969]
[1769037035785,2.50170978,130.67,130.59,3.21024694]
[1769037035984,2.50170978,130.65,130.59,3.21024694]
[1769037036892,9.39620978,130.65,130.59,3.21024694]
[1769037037088,2.50170978,130.63,130.57,3.21034264]
[1769037038995,9.39730978,130.63,130.57,10.10904264]
[1769037040090,2.50170978,130.63,130.58,3.21024694]
[1769037040296,9.39650978,130.65,130.59,3.21024694]
[1769037042298,2.50170978,130.65,130.6,3.21024694]
[1769037043697,9.39620978,130.65,130.6,3.21024694]
[1769037048709,9.39560978,130.67,130.61,3.21024694]
[1769037050508,9.39560978,130.67,130.62,3.21024694]
[1769037051603,6.8939,130.67,130.62,3.21024694]
[1769037051803,2.50170978,130.68,130.62,3.21024694]
[1769037053518,9.39470978,130.68,130.62,3.21024694]
[1769037053709,9.39470978,130.68,130.63,3.21024694]
[1769037055411,6.8925,130.69,130.64,3.21024694]
[1769037055610,2.50170978,130.72,130.64,3.21024694]
[1769037057116,6.8917,130.71,130.65,3.21024694]
[1769037061119,2.50170978,130.72,130.65,3.21024694]
[1769037062421,6.8913,130.71,130.65,3.21024694]
[1769037064411,2.50170978,130.74,130.67,3.3061166]
[1769037064810,6.8904,130.73,130.67,3.3061166]
[1769037068818,2.50170978,130.74,130.68,3.3061166]
[1769037071023,6.8903,130.73,130.68,3.3061166]
[1769037073420,107.183,130.73,130.63,6.8954]
[1769037073626,2.50170978,130.69,130.62,3.3061166]
[1769037073917,2.50170978,130.71,130.62,3.3061166]
[1769037074123,9.39400978,130.69,130.62,3.3061166]
[1769037074925,9.39400978,130.69,130.63,3.3061166]
[1769037076328,6.8918,130.7,130.64,3.3061166]
[1769037078030,6.8918,130.7,130.64,10.2011166]
[1769037079330,6.8918,130.7,130.64,3.3061166]
[1769037080429,6.8923,130.69,130.64,3.3061166]
[1769037081018,9.39340978,130.71,130.64,3.3061166]
[1769037082832,9.39340978,130.71,130.64,10.2009166]
[1769037083333,6.892,130.7,130.64,10.2009166]
[1769037084932,9.39370583,130.7,130.64,10.2009166]
[1769037086025,9.39370583,130.7,130.65,3.3061166]
[1769037086928,2.50170583,130.7,130.65,10.2005166]